[Event "Titled Tuesday Blitz November 29 Late 2022"]
[White "Milikow, Yoav"]
[Black "Jobava, Baadur"]
[WhiteFideId "2822237"]
[BlackFideId "13601520"]
[WhiteElo "2341"]
[BlackElo "2582"]
[Result "0-1"]
[Round "05"]
[TimeControl "180+1"]
[Date "2022.11.30"]
[WhiteClock "0:00:04"]
[BlackClock "0:00:38"]

1. d4 {[%clk 0:02:55]}  Nf6 {[%clk 0:03:00]} 2. c4 {[%clk 0:02:53]}  g6 {[%clk 0:03:00]} 3. Nc3 {[%clk 0:02:45]}  Bg7 {[%clk 0:03:00]} 4. e4 {[%clk 0:02:41]}  O-O {[%clk 0:03:00]} 5. Be2 {[%clk 0:02:41]}  c6 {[%clk 0:02:59]} 6. h4 {[%clk 0:02:30]}  h5 {[%clk 0:02:50]} 7. e5 {[%clk 0:02:18]}  Nh7 {[%clk 0:02:50]} 8. g4 {[%clk 0:02:17]}  d6 {[%clk 0:02:43]} 9. e6 {[%clk 0:02:09]}  Bxe6 {[%clk 0:02:38]} 10. gxh5 {[%clk 0:02:08]}  gxh5 {[%clk 0:02:39]} 11. d5 {[%clk 0:02:06]}  cxd5 {[%clk 0:02:37]} 12. cxd5 {[%clk 0:02:07]}  Bf5 {[%clk 0:02:36]} 13. Bxh5 {[%clk 0:02:05]}  Nd7 {[%clk 0:02:33]} 14. Nge2 {[%clk 0:02:02]}  Ne5 {[%clk 0:02:28]} 15. Ng3 {[%clk 0:01:59]}  Qd7 {[%clk 0:02:21]} 16. Nxf5 {[%clk 0:01:44]}  Qxf5 {[%clk 0:02:22]} 17. Be2 {[%clk 0:01:43]}  Kh8 {[%clk 0:02:16]} 18. f4 {[%clk 0:01:26]}  Ng6 {[%clk 0:01:57]} 19. Bg4 {[%clk 0:01:01]}  Bxc3+ {[%clk 0:01:54]} 20. bxc3 {[%clk 0:01:02]}  Qe4+ {[%clk 0:01:53]} 21. Kf2 {[%clk 0:01:02]}  Nxf4 {[%clk 0:01:47]} 22. Bf3 {[%clk 0:00:41]}  Nd3+ {[%clk 0:01:46]} 23. Kf1 {[%clk 0:00:40]}  Qf5 {[%clk 0:01:46]} 24. Be3 {[%clk 0:00:31]}  Ne5 {[%clk 0:01:35]} 25. Bd4 {[%clk 0:00:31]}  Nf6 {[%clk 0:01:29]} 26. Bxe5 {[%clk 0:00:31]}  dxe5 {[%clk 0:01:30]} 27. Ke1 {[%clk 0:00:29]}  Rac8 {[%clk 0:01:21]} 28. Rc1 {[%clk 0:00:16]}  Rg8 {[%clk 0:01:19]} 29. Rf1 {[%clk 0:00:16]}  Qf4 {[%clk 0:01:13]} 30. Qd2 {[%clk 0:00:11]}  Rc4 {[%clk 0:00:56]} 31. Be2 {[%clk 0:00:09]}  Qg3+ {[%clk 0:00:46]} 32. Kd1 {[%clk 0:00:08]}  Rxh4 {[%clk 0:00:47]} 33. d6 {[%clk 0:00:05]}  Ne4 {[%clk 0:00:42]} 34. Qd5 {[%clk 0:00:03]}  Nxc3+ {[%clk 0:00:37]} 35. Rxc3 {[%clk 0:00:03]}  Qxc3 {[%clk 0:00:38]} 36. d7 {[%clk 0:00:04]}  Rd4+ {[%clk 0:00:38]} 0-1


[Site "https://www.chess.com"]

[Event "Titled Tuesday Blitz November 29 Late 2022"]
[White "Milosevic, Milos"]
[Black "Chirilov, James A"]
[WhiteFideId "964875"]
[BlackFideId "30976677"]
[WhiteElo "2321"]
[BlackElo "1790"]
[Result "1-0"]
[Round "05"]
[TimeControl "180+1"]
[Date "2022.11.30"]
[WhiteClock "0:00:16"]
[BlackClock "0:00:03"]

1. e4 {[%clk 0:03:00]}  c5 {[%clk 0:02:59]} 2. Nf3 {[%clk 0:02:59]}  d6 {[%clk 0:02:59]} 3. d4 {[%clk 0:03:00]}  cxd4 {[%clk 0:02:59]} 4. Nxd4 {[%clk 0:03:00]}  Nf6 {[%clk 0:02:59]} 5. Nc3 {[%clk 0:03:01]}  a6 {[%clk 0:02:59]} 6. Bg5 {[%clk 0:03:02]}  Nbd7 {[%clk 0:02:58]} 7. f4 {[%clk 0:02:58]}  Qc7 {[%clk 0:02:40]} 8. Qf3 {[%clk 0:02:54]}  e6 {[%clk 0:02:37]} 9. O-O-O {[%clk 0:02:42]}  b5 {[%clk 0:02:29]} 10. Bd3 {[%clk 0:02:37]}  h6 {[%clk 0:02:20]} 11. Bxf6 {[%clk 0:02:27]}  Nxf6 {[%clk 0:02:21]} 12. e5 {[%clk 0:02:09]}  Bb7 {[%clk 0:02:13]} 13. Qh3 {[%clk 0:02:08]}  Nd7 {[%clk 0:01:03]} 14. Nxe6 {[%clk 0:02:01]}  fxe6 {[%clk 0:01:04]} 15. Qxe6+ {[%clk 0:02:00]}  Kd8 {[%clk 0:01:02]} 16. Rhe1 {[%clk 0:01:43]}  Nc5 {[%clk 0:00:44]} 17. exd6 {[%clk 0:01:37]}  Bxd6 {[%clk 0:00:37]} 18. Qg6 {[%clk 0:01:31]}  Bxf4+ {[%clk 0:00:25]} 19. Kb1 {[%clk 0:01:27]}  Kc8 {[%clk 0:00:20]} 20. Re8+ {[%clk 0:01:21]}  Rxe8 {[%clk 0:00:17]} 21. Qxe8+ {[%clk 0:01:22]}  Qd8 {[%clk 0:00:14]} 22. Bf5+ {[%clk 0:01:20]}  Kc7 {[%clk 0:00:14]} 23. Rxd8 {[%clk 0:01:16]}  Rxd8 {[%clk 0:00:15]} 24. Qe7+ {[%clk 0:01:10]}  Nd7 {[%clk 0:00:15]} 25. a4 {[%clk 0:01:05]}  Bd6 {[%clk 0:00:07]} 26. Qxg7 {[%clk 0:01:02]}  b4 {[%clk 0:00:08]} 27. Ne2 {[%clk 0:00:59]}  Be5 {[%clk 0:00:08]} 28. Qe7 {[%clk 0:00:56]}  Bd6 {[%clk 0:00:07]} 29. Qe3 {[%clk 0:00:50]}  Nc5 {[%clk 0:00:08]} 30. Qxh6 {[%clk 0:00:45]}  Rf8 {[%clk 0:00:06]} 31. Nd4 {[%clk 0:00:44]}  Bd5 {[%clk 0:00:04]} 32. b3 {[%clk 0:00:42]}  Re8 {[%clk 0:00:02]} 33. Qd2 {[%clk 0:00:34]}  Rf8 {[%clk 0:00:02]} 34. g4 {[%clk 0:00:32]}  Bb7 {[%clk 0:00:02]} 35. Qxb4 {[%clk 0:00:28]}  Re8 {[%clk 0:00:02]} 36. Qa5+ {[%clk 0:00:26]}  Kb8 {[%clk 0:00:02]} 37. Qb6 {[%clk 0:00:25]}  Be7 {[%clk 0:00:01]} 38. Nc6+ {[%clk 0:00:22]}  Ka8 {[%clk 0:00:02]} 39. Qxb7+ {[%clk 0:00:23]}  Kxb7 {[%clk 0:00:02]} 40. Nxe7 {[%clk 0:00:20]}  Rxe7 {[%clk 0:00:03]} 41. Kb2 {[%clk 0:00:20]}  Kc7 {[%clk 0:00:03]} 42. h4 {[%clk 0:00:20]}  Ne4 {[%clk 0:00:04]} 43. h5 {[%clk 0:00:19]}  Ng3 {[%clk 0:00:04]} 44. Bd3 {[%clk 0:00:18]}  Rg7 {[%clk 0:00:03]} 45. Bg6 {[%clk 0:00:16]} 1-0


[Site "https://www.chess.com"]

[Event "Titled Tuesday Blitz November 29 Late 2022"]
[White "Nakamura, Hikaru"]
[Black "Putnam, Liam"]
[WhiteFideId "2016192"]
[BlackFideId "30938279"]
[WhiteElo "2909"]
[BlackElo "2082"]
[Result "1-0"]
[Round "05"]
[TimeControl "180+1"]
[Date "2022.11.30"]
[WhiteClock "0:01:27"]
[BlackClock "0:00:34"]

1. Nf3 {[%clk 0:02:57]}  d5 {[%clk 0:02:55]} 2. g3 {[%clk 0:02:57]}  g6 {[%clk 0:02:54]} 3. d4 {[%clk 0:02:56]}  Bg7 {[%clk 0:02:54]} 4. Bg2 {[%clk 0:02:56]}  c6 {[%clk 0:02:54]} 5. c4 {[%clk 0:02:55]}  dxc4 {[%clk 0:02:54]} 6. Qc2 {[%clk 0:02:55]}  Nf6 {[%clk 0:02:27]} 7. Qxc4 {[%clk 0:02:54]}  O-O {[%clk 0:02:26]} 8. O-O {[%clk 0:02:54]}  Be6 {[%clk 0:02:26]} 9. Qa4 {[%clk 0:02:54]}  b5 {[%clk 0:02:13]} 10. Qc2 {[%clk 0:02:53]}  Bf5 {[%clk 0:02:13]} 11. Qd1 {[%clk 0:02:54]}  Qb6 {[%clk 0:02:05]} 12. a4 {[%clk 0:02:44]}  Nbd7 {[%clk 0:01:54]} 13. Nbd2 {[%clk 0:02:41]}  Rfd8 {[%clk 0:01:52]} 14. axb5 {[%clk 0:02:35]}  Qxb5 {[%clk 0:01:43]} 15. Re1 {[%clk 0:02:21]}  Ne4 {[%clk 0:01:41]} 16. e3 {[%clk 0:02:20]}  Nb6 {[%clk 0:01:18]} 17. Nh4 {[%clk 0:02:15]}  Nxd2 {[%clk 0:01:19]} 18. Nxf5 {[%clk 0:02:13]}  gxf5 {[%clk 0:01:00]} 19. Bxd2 {[%clk 0:02:13]}  e5 {[%clk 0:00:59]} 20. Qc1 {[%clk 0:01:56]}  Rac8 {[%clk 0:00:53]} 21. Rxa7 {[%clk 0:01:39]}  exd4 {[%clk 0:00:52]} 22. exd4 {[%clk 0:01:40]}  Bxd4 {[%clk 0:00:52]} 23. Bc3 {[%clk 0:01:40]}  Bxc3 {[%clk 0:00:45]} 24. bxc3 {[%clk 0:01:37]}  Rd7 {[%clk 0:00:36]} 25. Qg5+ {[%clk 0:01:35]}  Kf8 {[%clk 0:00:36]} 26. Rxd7 {[%clk 0:01:31]}  Nxd7 {[%clk 0:00:37]} 27. Qe7+ {[%clk 0:01:26]}  Kg7 {[%clk 0:00:34]} 28. Qxd7 {[%clk 0:01:27]} 1-0


[Site "https://www.chess.com"]

[Event "Titled Tuesday Blitz November 29 Late 2022"]
[White "Necromon"]
[Black "Steinberg, Nitzan"]
[BlackFideId "2801795"]
[WhiteElo "2494"]
[BlackElo "2491"]
[Result "0-1"]
[Round "05"]
[TimeControl "180+1"]
[Date "2022.11.30"]
[WhiteClock "0:00:18"]
[BlackClock "0:00:28"]

1. Nf3 {[%clk 0:02:57]}  Nf6 {[%clk 0:02:59]} 2. g3 {[%clk 0:02:54]}  b6 {[%clk 0:03:00]} 3. Bg2 {[%clk 0:02:54]}  Bb7 {[%clk 0:03:00]} 4. O-O {[%clk 0:02:54]}  e6 {[%clk 0:03:01]} 5. b3 {[%clk 0:02:54]}  Be7 {[%clk 0:03:02]} 6. Bb2 {[%clk 0:02:54]}  O-O {[%clk 0:03:02]} 7. c4 {[%clk 0:02:54]}  d5 {[%clk 0:02:59]} 8. cxd5 {[%clk 0:02:53]}  exd5 {[%clk 0:02:59]} 9. d4 {[%clk 0:02:51]}  Ne4 {[%clk 0:02:56]} 10. Nbd2 {[%clk 0:02:51]}  Bf6 {[%clk 0:02:56]} 11. Nxe4 {[%clk 0:02:49]}  dxe4 {[%clk 0:02:56]} 12. Ne5 {[%clk 0:02:49]}  Qd5 {[%clk 0:01:39]} 13. e3 {[%clk 0:02:36]}  Nd7 {[%clk 0:01:31]} 14. Rc1 {[%clk 0:02:27]}  c5 {[%clk 0:01:23]} 15. Nxd7 {[%clk 0:02:09]}  Qxd7 {[%clk 0:01:23]} 16. Qe2 {[%clk 0:02:08]}  cxd4 {[%clk 0:01:21]} 17. exd4 {[%clk 0:02:07]}  Rfe8 {[%clk 0:01:21]} 18. Rfd1 {[%clk 0:02:05]}  Bd5 {[%clk 0:01:19]} 19. Rc2 {[%clk 0:01:55]}  Rac8 {[%clk 0:01:19]} 20. Rdc1 {[%clk 0:01:54]}  Rxc2 {[%clk 0:01:14]} 21. Qxc2 {[%clk 0:01:53]}  h5 {[%clk 0:01:15]} 22. Qc7 {[%clk 0:01:50]}  Qf5 {[%clk 0:01:15]} 23. h3 {[%clk 0:01:02]}  e3 {[%clk 0:01:14]} 24. fxe3 {[%clk 0:01:00]}  Bxg2 {[%clk 0:01:11]} 25. Kxg2 {[%clk 0:00:56]}  Qe4+ {[%clk 0:01:10]} 26. Kh2 {[%clk 0:00:54]}  Qxe3 {[%clk 0:01:09]} 27. Rc2 {[%clk 0:00:43]}  Qf3 {[%clk 0:00:56]} 28. Qc4 {[%clk 0:00:25]}  h4 {[%clk 0:00:45]} 29. gxh4 {[%clk 0:00:21]}  Qf4+ {[%clk 0:00:43]} 30. Kh1 {[%clk 0:00:19]}  Re1+ {[%clk 0:00:41]} 31. Kg2 {[%clk 0:00:19]}  Bxh4 {[%clk 0:00:38]} 32. Qd3 {[%clk 0:00:19]}  Qg5+ {[%clk 0:00:29]} 33. Kh2 {[%clk 0:00:18]}  Qg1# {[%clk 0:00:28]} 0-1


[Site "https://www.chess.com"]

[Event "Titled Tuesday Blitz November 29 Late 2022"]
[White "Novikova, Galina"]
[Black "Torres Dominguez, David"]
[WhiteFideId "4157095"]
[BlackFideId "2220857"]
[WhiteElo "1973"]
[BlackElo "2037"]
[Result "1-0"]
[Round "05"]
[TimeControl "180+1"]
[Date "2022.11.30"]
[WhiteClock "0:00:15"]
[BlackClock "0:00:36"]

1. e4 {[%clk 0:03:00]}  Nc6 {[%clk 0:02:59]} 2. Nf3 {[%clk 0:03:00]}  e5 {[%clk 0:02:58]} 3. d4 {[%clk 0:02:59]}  exd4 {[%clk 0:02:59]} 4. Nxd4 {[%clk 0:03:00]}  Nf6 {[%clk 0:02:59]} 5. Nxc6 {[%clk 0:03:01]}  bxc6 {[%clk 0:02:59]} 6. Qe2 {[%clk 0:03:01]}  Qe7 {[%clk 0:02:58]} 7. Nc3 {[%clk 0:03:01]}  d5 {[%clk 0:02:57]} 8. exd5 {[%clk 0:03:02]}  Qxe2+ {[%clk 0:02:56]} 9. Bxe2 {[%clk 0:03:03]}  cxd5 {[%clk 0:02:56]} 10. Nb5 {[%clk 0:03:02]}  Bb4+ {[%clk 0:02:44]} 11. c3 {[%clk 0:02:59]}  Ba5 {[%clk 0:02:44]} 12. Bf4 {[%clk 0:02:58]}  O-O {[%clk 0:02:39]} 13. Nxc7 {[%clk 0:02:48]}  Rb8 {[%clk 0:01:59]} 14. O-O-O {[%clk 0:02:38]}  Rb6 {[%clk 0:01:39]} 15. Nxd5 {[%clk 0:02:31]}  Nxd5 {[%clk 0:01:39]} 16. Rxd5 {[%clk 0:02:32]}  Rf6 {[%clk 0:01:31]} 17. Rxa5 {[%clk 0:02:16]}  Rxf4 {[%clk 0:01:31]} 18. Bf3 {[%clk 0:02:15]}  a6 {[%clk 0:01:27]} 19. Re1 {[%clk 0:02:09]}  Rf6 {[%clk 0:01:26]} 20. Rae5 {[%clk 0:02:03]}  g6 {[%clk 0:01:25]} 21. R1e2 {[%clk 0:01:51]}  Be6 {[%clk 0:01:25]} 22. Bd5 {[%clk 0:01:48]}  Bg4 {[%clk 0:01:22]} 23. f3 {[%clk 0:01:47]}  Bf5 {[%clk 0:01:21]} 24. Bb3 {[%clk 0:01:35]}  Kg7 {[%clk 0:01:21]} 25. Re7 {[%clk 0:01:30]}  Bd3 {[%clk 0:01:18]} 26. Rd2 {[%clk 0:01:27]}  Bf5 {[%clk 0:01:14]} 27. a4 {[%clk 0:01:07]}  h5 {[%clk 0:01:14]} 28. Bd5 {[%clk 0:01:00]}  h4 {[%clk 0:01:09]} 29. c4 {[%clk 0:00:57]}  Rd6 {[%clk 0:01:01]} 30. b4 {[%clk 0:00:54]}  h3 {[%clk 0:00:59]} 31. g4 {[%clk 0:00:49]}  Bd7 {[%clk 0:00:59]} 32. b5 {[%clk 0:00:45]}  axb5 {[%clk 0:00:58]} 33. axb5 {[%clk 0:00:46]}  Rc8 {[%clk 0:00:55]} 34. Rxf7+ {[%clk 0:00:42]}  Kh6 {[%clk 0:00:52]} 35. f4 {[%clk 0:00:19]}  Rc5 {[%clk 0:00:47]} 36. g5+ {[%clk 0:00:18]}  Kh5 {[%clk 0:00:47]} 37. Bf3+ {[%clk 0:00:15]}  Bg4 {[%clk 0:00:36]} 38. Rh7# {[%clk 0:00:15]} 1-0


[Site "https://www.chess.com"]

[Event "Titled Tuesday Blitz November 29 Late 2022"]
[White "Pap, Gyula"]
[Black "Keymer, Vincent"]
[WhiteFideId "725323"]
[BlackFideId "12940690"]
[WhiteElo "2519"]
[BlackElo "2600"]
[Result "1/2-1/2"]
[Round "05"]
[TimeControl "180+1"]
[Date "2022.11.30"]
[WhiteClock "0:00:06"]
[BlackClock "0:00:05"]

1. d4 {[%clk 0:03:00]}  Nf6 {[%clk 0:02:59]} 2. Nf3 {[%clk 0:03:01]}  e6 {[%clk 0:02:59]} 3. e3 {[%clk 0:03:00]}  d5 {[%clk 0:02:59]} 4. Bd3 {[%clk 0:03:00]}  b6 {[%clk 0:02:58]} 5. O-O {[%clk 0:02:58]}  Bb7 {[%clk 0:02:58]} 6. b3 {[%clk 0:02:52]}  Bd6 {[%clk 0:02:58]} 7. Bb2 {[%clk 0:02:51]}  O-O {[%clk 0:02:59]} 8. Nbd2 {[%clk 0:02:51]}  Nbd7 {[%clk 0:02:56]} 9. Ne5 {[%clk 0:02:48]}  c5 {[%clk 0:02:49]} 10. f4 {[%clk 0:02:25]}  Rc8 {[%clk 0:02:45]} 11. Qe2 {[%clk 0:02:23]}  Qe7 {[%clk 0:02:38]} 12. a4 {[%clk 0:02:19]}  Ne4 {[%clk 0:02:25]} 13. Nxe4 {[%clk 0:01:57]}  dxe4 {[%clk 0:02:26]} 14. Bb5 {[%clk 0:01:57]}  Nb8 {[%clk 0:02:14]} 15. dxc5 {[%clk 0:01:28]}  Bxc5 {[%clk 0:02:11]} 16. f5 {[%clk 0:01:28]}  f6 {[%clk 0:01:44]} 17. Ng6 {[%clk 0:01:09]}  hxg6 {[%clk 0:01:36]} 18. fxg6 {[%clk 0:01:10]}  f5 {[%clk 0:01:24]} 19. b4 {[%clk 0:01:06]}  Qg5 {[%clk 0:01:03]} 20. bxc5 {[%clk 0:01:05]}  bxc5 {[%clk 0:00:55]} 21. Rf4 {[%clk 0:00:33]}  Qxg6 {[%clk 0:00:48]} 22. Raf1 {[%clk 0:00:34]}  a6 {[%clk 0:00:42]} 23. Bc4 {[%clk 0:00:34]}  Bd5 {[%clk 0:00:43]} 24. Rh4 {[%clk 0:00:24]}  Bxc4 {[%clk 0:00:33]} 25. Qxc4 {[%clk 0:00:25]}  Nd7 {[%clk 0:00:33]} 26. Rh3 {[%clk 0:00:22]}  Rf7 {[%clk 0:00:24]} 27. Rg3 {[%clk 0:00:22]}  Qh6 {[%clk 0:00:20]} 28. Qxa6 {[%clk 0:00:20]}  Re8 {[%clk 0:00:20]} 29. Qc6 {[%clk 0:00:15]}  Rb8 {[%clk 0:00:19]} 30. Bc3 {[%clk 0:00:14]}  Nf8 {[%clk 0:00:16]} 31. a5 {[%clk 0:00:10]}  Rd8 {[%clk 0:00:10]} 32. a6 {[%clk 0:00:10]}  Rdd7 {[%clk 0:00:11]} 33. Qxc5 {[%clk 0:00:09]}  Ng6 {[%clk 0:00:09]} 34. a7 {[%clk 0:00:05]}  Rxa7 {[%clk 0:00:08]} 35. Qc8+ {[%clk 0:00:06]}  Nf8 {[%clk 0:00:08]} 36. Bd4 {[%clk 0:00:05]}  Rac7 {[%clk 0:00:08]} 37. Qd8 {[%clk 0:00:05]}  Rxc2 {[%clk 0:00:06]} 38. Qe8 {[%clk 0:00:06]}  Rcc7 {[%clk 0:00:06]} 39. h3 {[%clk 0:00:03]}  Qh4 {[%clk 0:00:05]} 40. Kh2 {[%clk 0:00:03]}  Qe7 {[%clk 0:00:05]} 41. Qb5 {[%clk 0:00:02]}  Rd7 {[%clk 0:00:04]} 42. Qe5 {[%clk 0:00:02]}  Rd5 {[%clk 0:00:04]} 43. Qb8 {[%clk 0:00:02]}  e5 {[%clk 0:00:05]} 44. Bc3 {[%clk 0:00:01]}  Rd8 {[%clk 0:00:05]} 45. Qb4 {[%clk 0:00:01]}  Qxb4 {[%clk 0:00:04]} 46. Bxb4 {[%clk 0:00:02]}  Ne6 {[%clk 0:00:04]} 47. Rg6 {[%clk 0:00:02]}  Nf8 {[%clk 0:00:04]} 48. Rg5 {[%clk 0:00:02]}  g6 {[%clk 0:00:04]} 49. Bc3 {[%clk 0:00:02]}  Nh7 {[%clk 0:00:04]} 50. Rg3 {[%clk 0:00:02]}  Nf8 {[%clk 0:00:04]} 51. h4 {[%clk 0:00:02]}  Kh7 {[%clk 0:00:04]} 52. Bxe5 {[%clk 0:00:02]}  Re8 {[%clk 0:00:05]} 53. Bf4 {[%clk 0:00:03]}  Ne6 {[%clk 0:00:05]} 54. Bg5 {[%clk 0:00:03]}  Ng7 {[%clk 0:00:05]} 55. Rh3 {[%clk 0:00:02]}  Ref8 {[%clk 0:00:06]} 56. Kg1 {[%clk 0:00:02]}  Nh5 {[%clk 0:00:06]} 57. Kh2 {[%clk 0:00:02]}  Kg8 {[%clk 0:00:06]} 58. Rd1 {[%clk 0:00:02]}  Rc8 {[%clk 0:00:06]} 59. Rd6 {[%clk 0:00:03]}  Kh7 {[%clk 0:00:06]} 60. Re6 {[%clk 0:00:03]}  Rc2 {[%clk 0:00:06]} 61. Rd6 {[%clk 0:00:03]}  Ra7 {[%clk 0:00:06]} 62. Rd1 {[%clk 0:00:03]}  Raa2 {[%clk 0:00:06]} 63. Rg1 {[%clk 0:00:03]}  Kg7 {[%clk 0:00:06]} 64. Kh1 {[%clk 0:00:04]}  Kf7 {[%clk 0:00:06]} 65. g4 {[%clk 0:00:03]}  Ng7 {[%clk 0:00:04]} 66. h5 {[%clk 0:00:03]}  fxg4 {[%clk 0:00:04]} 67. hxg6+ {[%clk 0:00:03]}  Kxg6 {[%clk 0:00:05]} 68. Bf4 {[%clk 0:00:02]}  Kf5 {[%clk 0:00:03]} 69. Rh7 {[%clk 0:00:02]}  Ne6 {[%clk 0:00:03]} 70. Rh5+ {[%clk 0:00:03]}  Kf6 {[%clk 0:00:04]} 71. Rxg4 {[%clk 0:00:02]}  Rc1+ {[%clk 0:00:04]} 72. Rg1 {[%clk 0:00:02]}  Rxg1+ {[%clk 0:00:04]} 73. Kxg1 {[%clk 0:00:03]}  Nxf4 {[%clk 0:00:02]} 74. exf4 {[%clk 0:00:04]}  e3 {[%clk 0:00:03]} 75. Kf1 {[%clk 0:00:03]}  Rf2+ {[%clk 0:00:03]} 76. Ke1 {[%clk 0:00:04]}  Rxf4 {[%clk 0:00:04]} 77. Ke2 {[%clk 0:00:05]}  Re4 {[%clk 0:00:04]} 78. Rh3 {[%clk 0:00:05]}  Kf5 {[%clk 0:00:04]} 79. Rxe3 {[%clk 0:00:06]}  Rxe3+ {[%clk 0:00:05]} 80. Kxe3 {[%clk 0:00:06]} 1/2-1/2


[Site "https://www.chess.com"]

[Event "Titled Tuesday Blitz November 29 Late 2022"]
[White "Pein, Jonathan"]
[Black "Kim, Sergey"]
[WhiteFideId "417092"]
[BlackFideId "13700570"]
[WhiteElo "2227"]
[BlackElo "2617"]
[Result "1/2-1/2"]
[Round "05"]
[TimeControl "180+1"]
[Date "2022.11.30"]
[WhiteClock "0:00:10"]
[BlackClock "0:00:26"]

1. c4 {[%clk 0:01:38]}  Nf6 {[%clk 0:02:58]} 2. Nc3 {[%clk 0:01:38]}  g6 {[%clk 0:02:58]} 3. g3 {[%clk 0:01:38]}  Bg7 {[%clk 0:02:59]} 4. Bg2 {[%clk 0:01:39]}  O-O {[%clk 0:02:59]} 5. e4 {[%clk 0:01:39]}  d6 {[%clk 0:03:00]} 6. Nge2 {[%clk 0:01:40]}  e5 {[%clk 0:02:59]} 7. O-O {[%clk 0:01:40]}  c6 {[%clk 0:02:57]} 8. d3 {[%clk 0:01:40]}  a5 {[%clk 0:02:56]} 9. h3 {[%clk 0:01:40]}  Nbd7 {[%clk 0:02:56]} 10. Be3 {[%clk 0:01:41]}  Nc5 {[%clk 0:02:55]} 11. f4 {[%clk 0:01:38]}  Nfd7 {[%clk 0:02:51]} 12. f5 {[%clk 0:01:35]}  a4 {[%clk 0:02:45]} 13. Qd2 {[%clk 0:01:32]}  Rb8 {[%clk 0:02:33]} 14. Rad1 {[%clk 0:01:32]}  Re8 {[%clk 0:02:17]} 15. Bh6 {[%clk 0:01:30]}  f6 {[%clk 0:02:06]} 16. fxg6 {[%clk 0:01:24]}  hxg6 {[%clk 0:02:06]} 17. Bxg7 {[%clk 0:01:20]}  Kxg7 {[%clk 0:02:06]} 18. d4 {[%clk 0:01:21]}  Ne6 {[%clk 0:01:48]} 19. dxe5 {[%clk 0:01:18]}  dxe5 {[%clk 0:01:47]} 20. Qd6 {[%clk 0:01:12]}  Qe7 {[%clk 0:01:42]} 21. Nxa4 {[%clk 0:01:07]}  Qxd6 {[%clk 0:01:38]} 22. Rxd6 {[%clk 0:01:08]}  Ra8 {[%clk 0:01:37]} 23. Nac3 {[%clk 0:01:07]}  Ndc5 {[%clk 0:01:29]} 24. b3 {[%clk 0:00:58]}  Ng5 {[%clk 0:01:28]} 25. Rfxf6 {[%clk 0:00:52]}  Be6 {[%clk 0:01:25]} 26. Rf1 {[%clk 0:00:48]}  Bxh3 {[%clk 0:01:23]} 27. Bxh3 {[%clk 0:00:46]}  Nxh3+ {[%clk 0:01:22]} 28. Kg2 {[%clk 0:00:46]}  Ng5 {[%clk 0:01:21]} 29. b4 {[%clk 0:00:35]}  Nce6 {[%clk 0:01:17]} 30. Rd7+ {[%clk 0:00:33]}  Kg8 {[%clk 0:01:17]} 31. Rxb7 {[%clk 0:00:32]}  Ra3 {[%clk 0:01:16]} 32. Rf6 {[%clk 0:00:32]}  Nf8 {[%clk 0:01:10]} 33. Rxc6 {[%clk 0:00:30]}  Rd8 {[%clk 0:01:09]} 34. Nd5 {[%clk 0:00:30]}  Rxa2 {[%clk 0:01:00]} 35. Kf1 {[%clk 0:00:27]}  Nxe4 {[%clk 0:00:56]} 36. Ne7+ {[%clk 0:00:26]}  Kh8 {[%clk 0:00:55]} 37. Nxg6+ {[%clk 0:00:23]}  Nxg6 {[%clk 0:00:53]} 38. Rxg6 {[%clk 0:00:24]}  Rd1+ {[%clk 0:00:52]} 39. Kg2 {[%clk 0:00:24]}  Rxe2+ {[%clk 0:00:50]} 40. Kf3 {[%clk 0:00:22]}  Nc3 {[%clk 0:00:41]} 41. Rc6 {[%clk 0:00:17]}  Rf1+ {[%clk 0:00:40]} 42. Kg4 {[%clk 0:00:17]}  Rf8 {[%clk 0:00:35]} 43. Rh6+ {[%clk 0:00:16]}  Kg8 {[%clk 0:00:34]} 44. Rg6+ {[%clk 0:00:17]}  Kh8 {[%clk 0:00:34]} 45. c5 {[%clk 0:00:14]}  Ne4 {[%clk 0:00:26]} 46. Rh6+ {[%clk 0:00:13]}  Kg8 {[%clk 0:00:26]} 47. Rg6+ {[%clk 0:00:13]}  Kh8 {[%clk 0:00:26]} 48. Rh6+ {[%clk 0:00:09]}  Kg8 {[%clk 0:00:26]} 49. Rg6+ {[%clk 0:00:10]}  Kh8 {[%clk 0:00:26]} 1/2-1/2


[Site "https://www.chess.com"]

[Event "Titled Tuesday Blitz November 29 Late 2022"]
[White "Pranav, V"]
[Black "Yanchenko, Roman"]
[WhiteFideId "25060783"]
[BlackFideId "4137329"]
[WhiteElo "2430"]
[BlackElo "2489"]
[Result "1-0"]
[Round "05"]
[TimeControl "180+1"]
[Date "2022.11.30"]
[WhiteClock "0:01:51"]
[BlackClock "0:00:03"]

1. e4 {[%clk 0:02:58]}  e6 {[%clk 0:03:00]} 2. d3 {[%clk 0:02:54]}  d5 {[%clk 0:03:01]} 3. Nd2 {[%clk 0:02:55]}  Nf6 {[%clk 0:03:00]} 4. Ngf3 {[%clk 0:02:55]}  c5 {[%clk 0:03:00]} 5. g3 {[%clk 0:02:54]}  Nc6 {[%clk 0:03:01]} 6. Bg2 {[%clk 0:02:55]}  g6 {[%clk 0:03:01]} 7. O-O {[%clk 0:02:55]}  Bg7 {[%clk 0:03:01]} 8. Re1 {[%clk 0:02:55]}  O-O {[%clk 0:03:01]} 9. Qe2 {[%clk 0:02:56]}  b5 {[%clk 0:02:49]} 10. Nf1 {[%clk 0:02:53]}  Bb7 {[%clk 0:02:46]} 11. e5 {[%clk 0:02:53]}  Nd7 {[%clk 0:02:46]} 12. Bf4 {[%clk 0:02:53]}  Qb6 {[%clk 0:02:47]} 13. h4 {[%clk 0:02:53]}  Rfb8 {[%clk 0:02:47]} 14. h5 {[%clk 0:02:54]}  Qd8 {[%clk 0:02:37]} 15. h6 {[%clk 0:02:53]}  Bf8 {[%clk 0:02:37]} 16. N1h2 {[%clk 0:02:54]}  a5 {[%clk 0:02:27]} 17. Ng4 {[%clk 0:02:53]}  b4 {[%clk 0:02:27]} 18. Qd2 {[%clk 0:02:48]}  Ba6 {[%clk 0:02:25]} 19. Bg5 {[%clk 0:02:47]}  Be7 {[%clk 0:02:26]} 20. Bxe7 {[%clk 0:02:47]}  Nxe7 {[%clk 0:02:22]} 21. a3 {[%clk 0:02:43]}  bxa3 {[%clk 0:02:10]} 22. Rxa3 {[%clk 0:02:43]}  Rxb2 {[%clk 0:02:09]} 23. Rea1 {[%clk 0:02:30]}  Nc6 {[%clk 0:02:05]} 24. Qf4 {[%clk 0:02:20]}  Rb4 {[%clk 0:01:44]} 25. c4 {[%clk 0:02:19]}  dxc4 {[%clk 0:01:39]} 26. Ng5 {[%clk 0:02:19]}  Qe7 {[%clk 0:01:07]} 27. Bxc6 {[%clk 0:02:18]}  cxd3 {[%clk 0:01:07]} 28. Qf3 {[%clk 0:02:17]}  Qxg5 {[%clk 0:01:04]} 29. Bxd7 {[%clk 0:02:13]}  Rd8 {[%clk 0:00:55]} 30. Nf6+ {[%clk 0:02:11]}  Kh8 {[%clk 0:00:49]} 31. Rxa5 {[%clk 0:02:11]}  Bb7 {[%clk 0:00:45]} 32. Bc6 {[%clk 0:02:04]}  Bxc6 {[%clk 0:00:45]} 33. Qxc6 {[%clk 0:02:05]}  Qxe5 {[%clk 0:00:45]} 34. Ra8 {[%clk 0:02:01]}  Rbb8 {[%clk 0:00:36]} 35. Nd7 {[%clk 0:01:56]}  Qb2 {[%clk 0:00:11]} 36. Nxb8 {[%clk 0:01:52]}  d2 {[%clk 0:00:04]} 37. Rd1 {[%clk 0:01:51]}  Rxb8 {[%clk 0:00:03]} 38. Qe8+ {[%clk 0:01:50]}  Rxe8 {[%clk 0:00:03]} 39. Rxe8# {[%clk 0:01:51]} 1-0


[Site "https://www.chess.com"]